fUSD/lending_fUSD_20260617
["ID","MTS","AMOUNT","RATE_DAILY","PERIOD"]
[425290755,1781653845000,-267.0,0.00024,2]
[425290699,1781653845000,-267.0,0.00023,2]
[425290729,1781653845000,-567.47,0.00023264,2]
[425290730,1781653845000,-150.0,0.00023288,2]
[425290734,1781653845000,-152.74552153,0.00023611,2]
[425290727,1781653845000,-500.0,0.00023258,2]
[425290732,1781653845000,-430.0,0.00023573,2]
[425290702,1781653845000,-434.0,0.00023,2]
[425290704,1781653845000,-216.0,0.00023,2]
[425290706,1781653845000,-161.0,0.00023,2]
[425290708,1781653845000,-1818.0,0.00023,2]
[425290705,1781653845000,-219.0,0.00023,2]
[425290703,1781653845000,-174.0,0.00023,2]
[425290707,1781653845000,-1096.0,0.00023,2]
[425290714,1781653845000,-200.0,0.00023099,2]
[425290713,1781653845000,-155.09781741,0.00023099,2]
[425290711,1781653845000,-151.0,0.00023099,2]
[425290716,1781653845000,-200.0,0.00023099,2]
[425290709,1781653845000,-537.6845,0.00023099,2]
[425290722,1781653845000,-209.40437684,0.00023099,2]
[425290715,1781653845000,-187.78006524,0.00023099,2]
[425290712,1781653845000,-209.40437684,0.00023099,2]
[425290720,1781653845000,-209.40437684,0.00023099,2]
[425290721,1781653845000,-2080.17592889,0.00023099,2]
[425290718,1781653845000,-209.40437684,0.00023099,2]
[425290719,1781653845000,-151.0,0.00023099,2]
[425290723,1781653845000,-500.0,0.00023182,2]
[425290724,1781653845000,-9946.95875791,0.00023208,2]
[425290726,1781653845000,-1230.36,0.00023258,2]
[425290717,1781653845000,-9552.16786547,0.00023099,2]
[425290725,1781653845000,-500.0,0.00023258,2]
[425290796,1781653846000,-504.0687638,0.00024657,2]
[425290794,1781653846000,-850.77,0.00024657,7]
[425290785,1781653846000,-22373.0,0.000243,2]
[425290792,1781653846000,-500.0,0.00024657,2]
[425290805,1781653846000,-575.479373,0.00024658,2]
[425290803,1781653846000,-575.479373,0.00024658,2]
[425290791,1781653846000,-500.0,0.00024657,2]
[425290793,1781653846000,-188.8598974,0.00024657,2]
[425290788,1781653846000,-9946.95875791,0.00024602,2]
[425290786,1781653846000,-178.3833019,0.00024593,2]
[425290795,1781653846000,-500.0,0.00024657,2]
[425290804,1781653846000,-575.479373,0.00024658,2]
[425290798,1781653846000,-575.479373,0.00024658,2]
[425290814,1781653846000,-575.479373,0.00024658,2]
[425290797,1781653846000,-575.479373,0.00024658,2]
[425290799,1781653846000,-575.479373,0.00024658,2]
[425290800,1781653846000,-575.479373,0.00024658,2]
[425290802,1781653846000,-575.479373,0.00024658,2]
[425290806,1781653846000,-575.479373,0.00024658,2]
[425290811,1781653846000,-575.479373,0.00024658,2]
[425290808,1781653846000,-575.479373,0.00024658,2]
[425290807,1781653846000,-575.479373,0.00024658,2]
[425290809,1781653846000,-575.479373,0.00024658,2]
[425290812,1781653846000,-575.479373,0.00024658,2]
[425290815,1781653846000,-575.479373,0.00024658,2]
[425290818,1781653846000,-1000.0,0.00024658,2]
[425290787,1781653846000,-500.0,0.00024594,2]
[425290801,1781653846000,-575.479373,0.00024658,2]
[425290789,1781653846000,-150.0,0.00024638,21]
[425290759,1781653846000,-216.0,0.00024,2]
[425290782,1781653846000,-250.0,0.00024231,2]
[425290813,1781653846000,-575.479373,0.00024658,2]
[425290756,1781653846000,-914.0,0.00024,2]
[425290761,1781653846000,-1096.0,0.00024,2]
[425290763,1781653846000,-1831.0,0.00024,2]
[425290764,1781653846000,-1218.16352748,0.00024122,2]
[425290767,1781653846000,-154.51081299,0.00024195,2]
[425290762,1781653846000,-150.0,0.00024,2]
[425290765,1781653846000,-2000.0,0.0002416,7]
[425290758,1781653846000,-434.0,0.00024,2]
[425290760,1781653846000,-219.0,0.00024,2]
[425290757,1781653846000,-192.0,0.00024,2]
[425290766,1781653846000,-578.20924308,0.00024195,2]
[425290769,1781653846000,-225.18697532,0.00024195,2]
[425290790,1781653846000,-537.0,0.00024654,2]
[425290779,1781653846000,-248.81312774,0.0002423,2]
[425290775,1781653846000,-225.18697532,0.00024195,2]
[425290771,1781653846000,-201.93286098,0.00024195,2]
[425290770,1781653846000,-155.09781746,0.00024195,2]
[425290777,1781653846000,-2236.95670847,0.00024195,2]
[425290772,1781653846000,-200.0,0.00024195,2]
[425290773,1781653846000,-10272.10520532,0.00024195,2]
[425290778,1781653846000,-225.18697532,0.00024195,2]
[425290776,1781653846000,-151.0,0.00024195,2]
[425290774,1781653846000,-225.18697532,0.00024195,2]
[425290780,1781653846000,-292.53285913,0.0002423,2]
[425290783,1781653846000,-196.56787709,0.00024242,2]
[425290784,1781653846000,-187.22864413,0.00024299,2]
[425290781,1781653846000,-250.0,0.00024231,2]
[425290768,1781653846000,-151.0,0.00024195,2]
[425290816,1781653846000,-575.479369,0.00024658,2]
[425290810,1781653846000,-575.479373,0.00024658,2]
[425290820,1781653846000,-151.0,0.00024658,2]
[425290847,1781653846000,-151.0,0.00024658,2]
[425290851,1781653846000,-151.0,0.00024658,2]
[425290849,1781653846000,-151.0,0.00024658,2]
[425290852,1781653846000,-151.0,0.00024658,2]
[425290855,1781653846000,-151.0,0.00024658,2]
[425290853,1781653846000,-151.0,0.00024658,2]
[425290854,1781653846000,-151.0,0.00024658,2]
[425290858,1781653846000,-251.438792,0.00024658,2]
[425290861,1781653846000,-151.0,0.00024658,2]
[425290865,1781653846000,-151.0,0.00024658,2]
[425290862,1781653846000,-151.0,0.00024658,2]
[425290869,1781653846000,-151.0,0.00024658,2]
[425290863,1781653846000,-151.0,0.00024658,2]
[425290850,1781653846000,-151.0,0.00024658,2]
[425290860,1781653846000,-151.0,0.00024658,2]
[425290867,1781653846000,-151.0,0.00024658,2]
[425290864,1781653846000,-151.0,0.00024658,2]
[425290866,1781653846000,-151.0,0.00024658,2]
[425290871,1781653846000,-151.0,0.00024658,2]
[425290875,1781653846000,-193.097944,0.00024658,2]
[425290877,1781653846000,-196.87610812,0.00024699,2]
[425290874,1781653846000,-151.0,0.00024658,2]
[425290873,1781653846000,-151.0,0.00024658,2]
[425290872,1781653846000,-151.0,0.00024658,2]
[425290870,1781653846000,-151.0,0.00024658,2]
[425290876,1781653846000,-150.0,0.00024658,2]
[425290878,1781653846000,-7162.01712825,0.000247,2]
[425290817,1781653846000,-291.59,0.00024658,2]
[425290859,1781653846000,-151.0,0.00024658,2]
[425290845,1781653846000,-275.934024,0.00024658,2]
[425290868,1781653846000,-151.0,0.00024658,2]
[425290857,1781653846000,-151.0,0.00024658,2]
[425290848,1781653846000,-151.0,0.00024658,2]
[425290819,1781653846000,-151.0,0.00024658,2]
[425290830,1781653846000,-151.0,0.00024658,2]
[425290832,1781653846000,-151.0,0.00024658,2]
[425290821,1781653846000,-151.0,0.00024658,2]
[425290879,1781653846000,-209.40437684,0.00024741,2]
[425290831,1781653846000,-151.0,0.00024658,2]
[425290829,1781653846000,-151.0,0.00024658,2]
[425290826,1781653846000,-151.0,0.00024658,2]
[425290825,1781653846000,-151.0,0.00024658,2]
[425290824,1781653846000,-151.0,0.00024658,2]
[425290823,1781653846000,-151.0,0.00024658,2]
[425290827,1781653846000,-151.0,0.00024658,2]
[425290828,1781653846000,-151.0,0.00024658,2]
[425290822,1781653846000,-151.0,0.00024658,2]
[425290835,1781653846000,-151.0,0.00024658,2]
[425290856,1781653846000,-151.0,0.00024658,2]
[425290833,1781653846000,-151.0,0.00024658,2]
[425290846,1781653846000,-151.0,0.00024658,2]
[425290842,1781653846000,-151.0,0.00024658,2]
[425290837,1781653846000,-206.649624,0.00024658,2]
[425290839,1781653846000,-151.0,0.00024658,2]
[425290843,1781653846000,-151.0,0.00024658,2]
[425290836,1781653846000,-151.0,0.00024658,2]
[425290840,1781653846000,-151.0,0.00024658,2]
[425290844,1781653846000,-151.0,0.00024658,2]
[425290838,1781653846000,-151.0,0.00024658,2]
[425290834,1781653846000,-151.0,0.00024658,2]
[425290841,1781653846000,-151.0,0.00024658,2]
[425290907,1781653847000,-151.0,0.00024881,2]
[425290898,1781653847000,-151.0,0.00024853,2]
[425290897,1781653847000,-151.0,0.00024853,2]
[425290894,1781653847000,-233.5188934,0.00024743,2]
[425290903,1781653847000,-151.0,0.00024881,2]
[425290905,1781653847000,-151.0,0.00024881,2]
[425290906,1781653847000,-151.0,0.00024881,2]
[425290913,1781653847000,-151.0,0.00024881,2]
[425290915,1781653847000,-151.0,0.00024881,2]
[425290909,1781653847000,-151.0,0.00024881,2]
[425290908,1781653847000,-151.0,0.00024881,2]
[425290910,1781653847000,-151.0,0.00024881,2]
[425290916,1781653847000,-268.0,0.00024881,2]
[425290911,1781653847000,-151.0,0.00024881,2]
[425290912,1781653847000,-151.0,0.00024881,2]
[425290918,1781653847000,-151.0,0.00024881,2]
[425290914,1781653847000,-151.0,0.00024881,2]
[425290902,1781653847000,-151.0,0.00024881,2]
[425290891,1781653847000,-233.51889339,0.00024743,2]
[425290899,1781653847000,-151.04,0.00024853,2]
[425290919,1781653847000,-151.0,0.00024881,2]
[425290880,1781653847000,-151.0,0.00024742,2]
[425290881,1781653847000,-599.60298507,0.00024742,2]
[425290884,1781653847000,-154.51081299,0.00024743,2]
[425290890,1781653847000,-233.5188934,0.00024743,2]
[425290893,1781653847000,-2319.72410669,0.00024743,2]
[425290882,1781653847000,-695.39793187,0.00024742,2]
[425290885,1781653847000,-151.0,0.00024743,2]
[425290886,1781653847000,-233.5188934,0.00024743,2]
[425290883,1781653847000,-599.60298506,0.00024743,2]
[425290887,1781653847000,-209.40437684,0.00024743,2]
[425290889,1781653847000,-3610.00685391,0.00024743,2]
[425290892,1781653847000,-151.0,0.00024743,2]
[425290888,1781653847000,-200.0,0.00024743,2]
[425290904,1781653847000,-151.0,0.00024881,2]
[425290895,1781653847000,-4926.32165751,0.00024801,2]
[425290900,1781653847000,-151.0,0.00024853,2]
[425290901,1781653847000,-151.08,0.00024881,2]
[425290920,1781653847000,-151.0,0.00024881,2]
[425290896,1781653847000,-2070.67065992,0.0002484,2]
[425290923,1781653847000,-151.0,0.00024881,2]
[425290940,1781653847000,-151.0,0.00024882,2]
[425290944,1781653847000,-573.33,0.00024882,2]
[425290946,1781653847000,-17029.28,0.00024893,7]
[425290950,1781653847000,-500.0,0.00024999,2]
[425290947,1781653847000,-5528.0,0.000249,3]
[425290949,1781653847000,-272.60992021,0.00024999,2]
[425290953,1781653847000,-1230.36,0.00024999,2]
[425290952,1781653847000,-1230.36,0.00024999,2]
[425290956,1781653847000,-500.0,0.00024999,2]
[425290955,1781653847000,-500.0,0.00024999,2]
[425290954,1781653847000,-500.0,0.00024999,2]
[425290948,1781653847000,-10274.98755929,0.00024928,2]
[425290917,1781653847000,-151.0,0.00024881,2]
[425290957,1781653847000,-89522.38469079,0.00025,2]
[425290958,1781653847000,-63988.82651863,0.00025,2]
[425290959,1781653847000,-13005.39305868,0.00025,2]
[425290960,1781653847000,-490.41021515,0.00025,2]
[425290941,1781653847000,-232.97,0.00024882,2]
[425290943,1781653847000,-151.0,0.00024882,2]
[425290951,1781653847000,-500.0,0.00024999,2]
[425290939,1781653847000,-151.0,0.00024882,2]
[425290921,1781653847000,-151.0,0.00024881,2]
[425290922,1781653847000,-151.09,0.00024881,2]
[425290926,1781653847000,-151.0,0.00024881,2]
[425290924,1781653847000,-151.0,0.00024881,2]
[425290925,1781653847000,-151.0,0.00024881,2]
[425290927,1781653847000,-151.0,0.00024881,2]
[425290932,1781653847000,-151.0,0.00024882,2]
[425290929,1781653847000,-151.0,0.00024881,2]
[425290930,1781653847000,-151.0,0.00024882,2]
[425290928,1781653847000,-151.0,0.00024881,2]
[425290933,1781653847000,-151.0,0.00024882,2]
[425290945,1781653847000,-151.0,0.00024882,2]
[425290935,1781653847000,-151.0,0.00024882,2]
[425290934,1781653847000,-151.0,0.00024882,2]
[425290937,1781653847000,-151.0,0.00024882,2]
[425290936,1781653847000,-151.0,0.00024882,2]
[425290938,1781653847000,-151.0,0.00024882,2]
[425290931,1781653847000,-151.0,0.00024882,2]
[425290942,1781653847000,-151.0,0.00024882,2]
[425290961,1781653848000,-614.87008371,0.00025,2]
[425290963,1781653849000,-475.0,0.00024795,10]
[425290962,1781653849000,-431.07023608,0.00025,2]
[425290964,1781653849000,-409.40800456,0.00025,2]
[425290965,1781654022000,56956.82553515,0.00015,2]
[425290974,1781654107000,172.0,0.00025304,120]
[425290975,1781654156000,250.0,0.00014,2]
[425290978,1781654230000,200.7993065,0.00030136,120]
[425290986,1781654305000,170.97990121,0.0001481,2]
[425290992,1781654523000,353.30021193,0.00014617,2]
[425290991,1781654523000,351.25513477,0.00014727,2]
[425290996,1781654568000,255.59298331,0.00014727,2]
[425290997,1781654569000,260.62155634,0.00014617,2]
[425290998,1781654758000,176.57,0.00012961,2]
[425291011,1781655031000,-163.78,0.000156,2]
[425291012,1781655031000,-153.0,0.000156,2]
[425291009,1781655031000,-300.0,0.00015271,2]
[425291014,1781655031000,-151.0,0.000156,2]
[425291016,1781655031000,-151.0,0.00015601,2]
[425291015,1781655031000,-150.0,0.000156,2]
[425291010,1781655031000,-150.0,0.0001529,2]
[425291005,1781655031000,-499.50294632,0.00015234,2]
[425291007,1781655031000,-1715.05777165,0.00015234,2]
[425291006,1781655031000,-1303.21291669,0.00015234,2]
[425291003,1781655031000,-233.0607219,0.00015184,2]
[425291001,1781655031000,-250.0,0.00015159,2]
[425291002,1781655031000,-171.68377219,0.00015159,2]
[425291004,1781655031000,-293.4658579,0.00015234,2]
[425291000,1781655031000,-901.45284147,0.00015134,2]
[425291008,1781655031000,-160.0,0.00015239,2]
[425291013,1781655031000,-151.0,0.000156,2]
[425291018,1781655031000,-151.0,0.0001561,2]
[425291020,1781655031000,-122.98773215,0.00015642,2]
[425291017,1781655031000,-151.0,0.00015602,2]
[425291047,1781655031000,-166.66,0.00015654,2]
[425291034,1781655031000,-150.0,0.00015643,2]
[425291045,1781655031000,-150.0,0.00015651,2]
[425291043,1781655031000,-152.0,0.00015645,2]
[425291038,1781655031000,-151.0,0.00015643,2]
[425291036,1781655031000,-151.0,0.00015643,2]
[425291041,1781655031000,-151.0,0.00015643,2]
[425291027,1781655031000,-151.0,0.00015643,2]
[425291029,1781655031000,-152.0,0.00015643,2]
[425291023,1781655031000,-177.01226785,0.00015642,2]
[425291019,1781655031000,-196.43007542,0.00015638,2]
[425291026,1781655031000,-151.0,0.00015643,2]
[425291025,1781655031000,-151.0,0.00015643,2]
[425291032,1781655031000,-151.0,0.00015643,2]
[425291028,1781655031000,-150.0,0.00015643,2]
[425291119,1781655032000,-500.0,0.00016438,2]
[425291118,1781655032000,-500.0,0.00016438,2]
[425291116,1781655032000,-356.32302498,0.00016438,2]
[425291117,1781655032000,-500.0,0.00016438,2]
[425291110,1781655032000,-151.0,0.00016397,2]
[425291114,1781655032000,-500.0,0.00016438,2]
[425291113,1781655032000,-500.0,0.00016438,2]
[425291112,1781655032000,-500.0,0.00016438,2]
[425291120,1781655032000,-500.0,0.00016438,2]
[425291115,1781655032000,-500.0,0.00016438,2]
[425291126,1781655032000,-717.71,0.00016446,2]
[425291129,1781655032000,-500.0,0.00016446,2]
[425291128,1781655032000,-500.0,0.00016446,2]
[425291123,1781655032000,-717.71,0.00016446,2]
[425291124,1781655032000,-717.71,0.00016446,2]
[425291121,1781655032000,-717.71,0.00016446,2]
[425291122,1781655032000,-717.71,0.00016446,2]
[425291125,1781655032000,-717.71,0.00016446,2]
[425291137,1781655032000,-1075.44655346,0.00016647,2]
[425291131,1781655032000,-500.0,0.00016446,2]
[425291134,1781655032000,-2500.0,0.00016647,2]
[425291135,1781655032000,-2500.0,0.00016647,2]
[425291136,1781655032000,-2500.0,0.00016647,2]
[425291127,1781655032000,-500.0,0.00016446,2]
[425291105,1781655032000,-500.0,0.00016338,2]
[425291091,1781655032000,-500.0,0.00016338,2]
[425291103,1781655032000,-500.0,0.00016338,2]
[425291055,1781655032000,-32.72230785,0.00015674,2]
[425291052,1781655032000,-117.27769215,0.00015674,2]
[425291050,1781655032000,-160.0,0.00015664,2]
[425291057,1781655032000,-153.0,0.00015765,2]
[425291061,1781655032000,-300.0,0.00016,2]
[425291063,1781655032000,-169.61,0.00016158,2]
[425291065,1781655032000,-722.68,0.00016254,2]
[425291067,1781655032000,-166.66,0.00016313,2]
[425291071,1781655032000,-341.2956019,0.00016337,2]
[425291059,1781655032000,-166.66,0.00015983,2]
[425291074,1781655032000,-56.55628174,0.00016338,2]
[425291069,1781655032000,-466.18535106,0.00016337,2]
[425291076,1781655032000,-661.15371826,0.00016338,2]
[425291078,1781655032000,-717.71,0.00016338,2]
[425291080,1781655032000,-500.0,0.00016338,2]
[425291083,1781655032000,-500.0,0.00016338,2]
[425291085,1781655032000,-309.58628174,0.00016338,2]
[425291087,1781655032000,-190.41371826,0.00016338,2]
[425291089,1781655032000,-500.0,0.00016338,2]
[425291096,1781655032000,-500.0,0.00016338,2]
[425291094,1781655032000,-500.0,0.00016338,2]
[425291101,1781655032000,-264.99088878,0.00016338,2]
[425291098,1781655032000,-235.00911122,0.00016338,2]
[425291107,1781655032000,-500.0,0.00016338,2]
[425291132,1781655032000,-500.0,0.00016446,2]
[425291163,1781655032000,-717.71,0.00017727,2]
[425291133,1781655032000,-166.66,0.00016642,2]
[425291168,1781655032000,-225.845042,0.00017728,2]
[425291166,1781655032000,-39894.55,0.00017728,2]
[425291171,1781655032000,-500.0,0.00017999,2]
[425291172,1781655032000,-350.0,0.00018,2]
[425291165,1781655032000,-150.99,0.00017728,2]
[425291170,1781655032000,-220.79265821,0.00017999,2]
[425291174,1781655032000,-166.26063996,0.00018,2]
[425291173,1781655032000,-760.96453966,0.00018,2]
[425291176,1781655032000,-166.26063996,0.000182,2]
[425291175,1781655032000,-760.96453966,0.000182,2]
[425291177,1781655032000,-1500.0,0.00018281,2]
[425291178,1781655032000,-357.37,0.00018345,2]
[425291181,1781655032000,-717.71,0.00018599,2]
[425291182,1781655032000,-760.96453966,0.000187,2]
[425291179,1781655032000,-760.96453966,0.000184,2]
[425291180,1781655032000,-760.96453966,0.000185,2]
[425291185,1781655032000,-2714.55,0.00019339,2]
[425291184,1781655032000,-500.0,0.00018999,2]
[425291187,1781655032000,-255.79,0.00019538,2]
[425291188,1781655032000,-200.0,0.00019538,2]
[425291186,1781655032000,-1613.0535,0.00019377,2]
[425291189,1781655032000,-414.13413202,0.000199,2]
[425291130,1781655032000,-500.0,0.00016446,2]
[425291169,1781655032000,-378.4452315,0.000179,2]
[425291167,1781655032000,-177.912417,0.00017728,2]
[425291183,1781655032000,-1555.5,0.00018829,2]
[425291162,1781655032000,-378.4452315,0.000177,2]
[425291164,1781655032000,-313.7494623,0.00017727,2]
[425291139,1781655032000,-349.98138967,0.00016647,2]
[425291140,1781655032000,-397.84647269,0.00016647,2]
[425291138,1781655032000,-1424.55344654,0.00016647,2]
[425291142,1781655032000,-150.0,0.00016647,2]
[425291149,1781655032000,-500.0,0.00016647,2]
[425291148,1781655032000,-250.0,0.00016647,2]
[425291143,1781655032000,-300.0,0.00016647,2]
[425291141,1781655032000,-1752.17213764,0.00016647,2]
[425291144,1781655032000,-600.0,0.00016647,2]
[425291147,1781655032000,-193.0,0.00016647,2]
[425291145,1781655032000,-200.0,0.00016647,2]
[425291150,1781655032000,-2905.72,0.00016658,2]
[425291152,1781655032000,-416.0,0.00016768,2]
[425291157,1781655032000,-222.87950249,0.00017208,2]
[425291146,1781655032000,-300.0,0.00016647,2]
[425291161,1781655032000,-378.4452315,0.000175,2]
[425291158,1781655032000,-192.11399838,0.000173,2]
[425291156,1781655032000,-378.4452315,0.000172,2]
[425291160,1781655032000,-166.66,0.00017301,2]
[425291155,1781655032000,-192.11399838,0.000172,2]
[425291154,1781655032000,-166.66,0.00016972,2]
[425291153,1781655032000,-606.7,0.00016924,2]
[425291151,1781655032000,-2000.0,0.0001673,2]
[425291159,1781655032000,-378.4452315,0.000173,2]
[425291213,1781655033000,-177.912417,0.00020118,2]
[425291216,1781655033000,-397.0,0.00020373,2]
[425291207,1781655033000,-232.0,0.0002,2]
[425291209,1781655033000,-153.0,0.0002,2]
[425291215,1781655033000,-1950.30522237,0.000202,2]
[425291212,1781655033000,-1494.0,0.0002,2]
[425291206,1781655033000,-67753.84886248,0.0002,2]
[425291217,1781655033000,-151.0,0.00020381,2]
[425291226,1781655033000,-161.57413016,0.00021,2]
[425291219,1781655033000,-717.71,0.00020419,2]
[425291222,1781655033000,-1950.30522237,0.000208,2]
[425291220,1781655033000,-1734.62772924,0.00020473,2]
[425291221,1781655033000,-1950.30522237,0.000206,2]
[425291223,1781655033000,-476.975,0.00020907,2]
[425291211,1781655033000,-989.0,0.0002,2]
[425291224,1781655033000,-500.0,0.00020999,2]
[425291218,1781655033000,-1950.30522237,0.000204,2]
[425291214,1781655033000,-225.845042,0.00020118,2]
[425291204,1781655033000,-22216.30725768,0.0002,2]
[425291208,1781655033000,-164.0,0.0002,2]
[425291225,1781655033000,-152.0,0.00021,2]
[425291192,1781655033000,-500.0,0.00019999,2]
[425291193,1781655033000,-1950.30522237,0.0002,2]
[425291190,1781655033000,-1672.7364795,0.00019925,2]
[425291191,1781655033000,-717.71,0.00019999,2]
[425291194,1781655033000,-152.0,0.0002,2]
[425291196,1781655033000,-465.0,0.0002,2]
[425291210,1781655033000,-153.91866506,0.0002,20]
[425291197,1781655033000,-206.0,0.0002,2]
[425291198,1781655033000,-248.0,0.0002,2]
[425291195,1781655033000,-153.869701,0.0002,2]
[425291200,1781655033000,-151.0,0.0002,2]
[425291203,1781655033000,-179.95,0.0002,8]
[425291199,1781655033000,-730.0,0.0002,2]
[425291202,1781655033000,-400.0,0.0002,2]
[425291205,1781655033000,-1160.87387984,0.0002,2]
[425291201,1781655033000,-1074.0,0.0002,2]
[425291228,1781655033000,-206.0,0.00021,2]
[425291229,1781655033000,-248.0,0.00021,2]
[425291230,1781655033000,-730.0,0.00021,2]
[425291250,1781655033000,-717.71,0.00021999,2]
[425291251,1781655033000,-277.06,0.00021999,2]
[425291256,1781655033000,-730.0,0.00022,2]
[425291252,1781655033000,-152.0,0.00022,2]
[425291253,1781655033000,-465.0,0.00022,2]
[425291257,1781655033000,-151.0,0.00022,2]
[425291254,1781655033000,-206.0,0.00022,2]
[425291258,1781655033000,-1074.0,0.00022,2]
[425291255,1781655033000,-248.0,0.00022,2]
[425291261,1781655033000,-164.0,0.00022,2]
[425291260,1781655033000,-232.0,0.00022,2]
[425291262,1781655033000,-153.0,0.00022,2]
[425291263,1781655033000,-5405.39,0.00022,2]
[425291266,1781655033000,-1073.10330377,0.00022,2]
[425291265,1781655033000,-389.70135617,0.00022,2]
[425291227,1781655033000,-465.0,0.00021,2]
[425291259,1781655033000,-720.0,0.00022,2]
[425291248,1781655033000,-386.88612347,0.00021832,7]
[425291249,1781655033000,-5000.0,0.00021918,2]
[425291243,1781655033000,-412.0,0.00021557,2]
[425291264,1781655033000,-599.29864383,0.00022,2]
[425291235,1781655033000,-414.13413198,0.00021,2]
[425291234,1781655033000,-164.0,0.00021,2]
[425291236,1781655033000,-153.0,0.00021,2]
[425291232,1781655033000,-1074.0,0.00021,2]
[425291231,1781655033000,-151.0,0.00021,2]
[425291233,1781655033000,-232.0,0.00021,2]
[425291241,1781655033000,-153.869701,0.00021333,2]
[425291247,1781655033000,-11997.00258718,0.0002163,2]
[425291245,1781655033000,-22152.5286939,0.0002163,2]
[425291237,1781655033000,-989.0,0.00021,2]
[425291244,1781655033000,-1865.36488656,0.00021569,2]
[425291240,1781655033000,-500.0,0.00021332,2]
[425291242,1781655033000,-500.0,0.00021513,2]
[425291246,1781655033000,-10953.68871892,0.0002163,2]
[425291239,1781655033000,-1798.80895522,0.00021021,2]
[425291238,1781655033000,-1494.0,0.00021,2]
[425291419,1781655039000,-414.13413198,0.000221,2]
[425291411,1781655039000,-420.89669623,0.00022,2]
[425291417,1781655039000,-196.80248723,0.00022017,2]
[425291421,1781655039000,-394.93866205,0.00022117,2]
[425291492,1781655039000,-621.23809795,0.00022117,2]
[425291413,1781655039000,-287.49014354,0.00022017,2]
[425291569,1781655040000,-154.8102066,0.00022117,2]
[425291567,1781655040000,-237.79467847,0.00022117,2]
[425291565,1781655040000,-13.82324,0.00022117,2]
[425291969,1781655043000,-200.51651341,0.00022117,2]
[425291972,1781655043000,-578.20924308,0.00022117,2]
[425291971,1781655043000,-500.0,0.00022117,2]
[425291974,1781655043000,-151.0,0.00022117,2]
[425291967,1781655043000,-1481.2378076,0.00022117,2]
[425291973,1781655043000,-1536.04360648,0.00022117,2]
[425291980,1781655043000,-1592.87721992,0.00022117,2]
[425291982,1781655043000,-152.0,0.00022117,2]
[425291986,1781655043000,-500.0,0.00022117,2]
[425291976,1781655043000,-152.0,0.00022117,2]
[425291978,1781655043000,-500.0,0.00022117,2]
[425291997,1781655043000,-500.0,0.00022117,2]
[425291989,1781655043000,-670.58624095,0.00022117,2]
[425291993,1781655043000,-152.0,0.00022117,2]
[425291995,1781655043000,-163.74133298,0.00022117,2]
[425291991,1781655043000,-1651.81367706,0.00022117,2]
[425291984,1781655043000,-151.0,0.00022117,2]
[425291962,1781655043000,-151.0,0.00022117,2]
[425291958,1781655043000,-1428.38747117,0.00022117,2]
[425291965,1781655043000,-152.0,0.00022117,2]
[425291924,1781655043000,-913.2997934,0.00022117,2]
[425291928,1781655043000,-225.74308403,0.00022117,2]
[425291926,1781655043000,-151.0,0.00022117,2]